[Event "Late-Titled-Tuesday-Blitz-April-23-2024"]
[Site "Chess.com"]
[Date "2024.04.23"]
[Round "9"]
[White "nabukatnezarr"]
[Black "dretch"]
[Result "0-1"]
[WhiteElo "2617"]
[BlackElo "2911"]
[TimeControl "180+1"]
[EndTime "15:46:16 PDT"]
[Termination "dretch won on time"]

1. d4 {[%clk 0:03:00.9]} 1... d5 {[%clk 0:03:00.1]} 2. c4 {[%clk 0:03:00.5]}
2... c6 {[%clk 0:02:59.5]} 3. cxd5 {[%clk 0:02:59.6]} 3... cxd5 {[%clk
0:02:59.9]} 4. Bf4 {[%clk 0:02:57.4]} 4... Nc6 {[%clk 0:02:59.5]} 5. e3 {[%clk
0:02:57.9]} 5... Bf5 {[%clk 0:02:54.5]} 6. Nc3 {[%clk 0:02:55.2]} 6... e6 {[%clk
0:02:54.6]} 7. Nf3 {[%clk 0:02:47.5]} 7... Bb4 {[%clk 0:02:49.2]} 8. Bb5 {[%clk
0:02:43.3]} 8... Ne7 {[%clk 0:02:48.3]} 9. O-O {[%clk 0:02:42.7]} 9... Bg4
{[%clk 0:02:40.8]} 10. h3 {[%clk 0:02:40.5]} 10... Bxf3 {[%clk 0:02:38.2]} 11.
Qxf3 {[%clk 0:02:41.4]} 11... Qa5 {[%clk 0:02:37.6]} 12. Bxc6+ {[%clk
0:02:36.9]} 12... Nxc6 {[%clk 0:02:17.3]} 13. Ne2 {[%clk 0:02:25.1]} 13... O-O
{[%clk 0:02:15.7]} 14. Ng3 {[%clk 0:02:25]} 14... Rfc8 {[%clk 0:02:13]} 15. Nh5
{[%clk 0:02:18.9]} 15... Bf8 {[%clk 0:01:56.5]} 16. Qg4 {[%clk 0:02:15.8]} 16...
Kh8 {[%clk 0:01:55.4]} 17. Rfc1 {[%clk 0:02:11.4]} 17... Qd2 {[%clk 0:01:31.9]}
18. Rab1 {[%clk 0:01:55.1]} 18... Qd3 {[%clk 0:00:59.4]} 19. a3 {[%clk
0:01:45.7]} 19... Na5 {[%clk 0:00:56]} 20. Be5 {[%clk 0:01:38.1]} 20... Qg6
{[%clk 0:00:55.5]} 21. Qe2 {[%clk 0:01:28.4]} 21... Nb3 {[%clk 0:00:55.2]} 22.
Rf1 {[%clk 0:01:15]} 22... Rc2 {[%clk 0:00:53.8]} 23. Qb5 {[%clk 0:01:04.6]}
23... Nd2 {[%clk 0:00:49.2]} 24. Nf4 {[%clk 0:01:03.9]} 24... Qf5 {[%clk
0:00:43.6]} 25. Qxb7 {[%clk 0:01:01.1]} 25... Rac8 {[%clk 0:00:43.2]} 26. Rbd1
{[%clk 0:00:39.4]} 26... Nxf1 {[%clk 0:00:40.8]} 27. Rxf1 {[%clk 0:00:40.3]}
27... Kg8 {[%clk 0:00:35.3]} 28. a4 {[%clk 0:00:20.9]} 28... a5 {[%clk
0:00:32.5]} 29. Rd1 {[%clk 0:00:17.4]} 29... h6 {[%clk 0:00:22.5]} 30. Qb6
{[%clk 0:00:11.7]} 30... Bb4 {[%clk 0:00:19.6]} 31. Nd3 {[%clk 0:00:09.2]} 31...
R2c4 {[%clk 0:00:14.3]} 32. Qb7 {[%clk 0:00:08.4]} 32... Bf8 {[%clk 0:00:13.9]}
33. Bg3 {[%clk 0:00:06.3]} 33... Rc2 {[%clk 0:00:13.1]} 34. Qb5 {[%clk
0:00:04.4]} 34... Ra8 {[%clk 0:00:10.1]} 35. Qb7 {[%clk 0:00:03.6]} 35... Rcc8
{[%clk 0:00:10.8]} 36. Ne5 {[%clk 0:00:01.5]} 36... Qh5 {[%clk 0:00:07.5]} 0-1

[Event "Late-Titled-Tuesday-Blitz-April-23-2024"]
[Site "Chess.com"]
[Date "2024.04.23"]
[Round "9"]
[White "xasid81"]
[Black "artin10862"]
[Result "0-1"]
[WhiteElo "2668"]
[BlackElo "2923"]
[TimeControl "180+1"]
[EndTime "15:46:21 PDT"]
[Termination "artin10862 won by resignation"]

1. d4 {[%clk 0:02:59.9]} 1... g6 {[%clk 0:02:55.2]} 2. Nf3 {[%clk 0:02:59.4]}
2... Bg7 {[%clk 0:02:54.2]} 3. Nc3 {[%clk 0:02:59.6]} 3... d6 {[%clk 0:02:48.1]}
4. e4 {[%clk 0:02:59.8]} 4... Nf6 {[%clk 0:02:47.9]} 5. h3 {[%clk 0:02:59.3]}
5... a6 {[%clk 0:02:47]} 6. a4 {[%clk 0:02:56.7]} 6... b6 {[%clk 0:02:46.8]} 7.
Bc4 {[%clk 0:02:51.6]} 7... O-O {[%clk 0:02:44.4]} 8. Qe2 {[%clk 0:02:50]} 8...
Bb7 {[%clk 0:02:44.1]} 9. e5 {[%clk 0:02:48.9]} 9... dxe5 {[%clk 0:02:39.8]} 10.
dxe5 {[%clk 0:02:49.8]} 10... Nd5 {[%clk 0:02:40.4]} 11. Bd2 {[%clk 0:02:40.4]}
11... Nb4 {[%clk 0:02:24.5]} 12. O-O-O {[%clk 0:02:32.4]} 12... Qe8 {[%clk
0:02:15]} 13. e6 {[%clk 0:02:16.7]} 13... f5 {[%clk 0:02:09.1]} 14. Bb3 {[%clk
0:02:12.5]} 14... b5 {[%clk 0:02:08]} 15. Ne5 {[%clk 0:02:06.5]} 15... c5 {[%clk
0:02:04]} 16. Nd7 {[%clk 0:02:03.7]} 16... c4 {[%clk 0:01:58.4]} 17. Bxc4 {[%clk
0:01:53.4]} 17... bxc4 {[%clk 0:01:57.5]} 18. Qxc4 {[%clk 0:01:53.6]} 18... N8c6
{[%clk 0:01:54.7]} 19. Nxf8 {[%clk 0:01:50.8]} 19... Qxf8 {[%clk 0:01:54.3]} 20.
Kb1 {[%clk 0:01:35.3]} 20... Rc8 {[%clk 0:01:53.5]} 21. Qb3 {[%clk 0:01:32.7]}
21... a5 {[%clk 0:01:45.8]} 22. Nb5 {[%clk 0:01:31]} 22... Ba6 {[%clk
0:01:45.1]} 23. c3 {[%clk 0:01:19.7]} 23... Nd3 {[%clk 0:01:40.7]} 24. Be3
{[%clk 0:01:16.2]} 24... f4 {[%clk 0:01:24.7]} 25. Rxd3 {[%clk 0:01:06]} 25...
fxe3 {[%clk 0:01:24.3]} 26. Rxe3 {[%clk 0:01:03.3]} 26... Qxf2 {[%clk
0:01:21.9]} 27. Rd3 {[%clk 0:00:44]} 27... Qf5 {[%clk 0:01:15.4]} 28. Qc2 {[%clk
0:00:39.5]} 28... Nb4 {[%clk 0:01:14.8]} 29. Rd8+ {[%clk 0:00:30.5]} 29... Rxd8
{[%clk 0:01:13.8]} 30. Qxf5 {[%clk 0:00:31.4]} 30... gxf5 {[%clk 0:01:14.7]} 31.
cxb4 {[%clk 0:00:32.2]} 31... Bxb5 {[%clk 0:01:15.3]} 32. axb5 {[%clk 0:00:32]}
32... axb4 {[%clk 0:01:16.1]} 33. Rc1 {[%clk 0:00:30.2]} 33... Be5 {[%clk
0:01:08.8]} 34. Rc5 {[%clk 0:00:28.5]} 34... Bd6 {[%clk 0:01:05.7]} 35. Rxf5
{[%clk 0:00:27.6]} 35... Kg7 {[%clk 0:01:06.2]} 36. Kc2 {[%clk 0:00:26.5]} 36...
Kg6 {[%clk 0:01:06.1]} 37. Rd5 {[%clk 0:00:26]} 37... Kf6 {[%clk 0:01:06.2]} 38.
Kb3 {[%clk 0:00:25.8]} 38... Kxe6 {[%clk 0:01:03.3]} 39. Rh5 {[%clk 0:00:26]}
39... Rh8 {[%clk 0:01:01.3]} 40. g4 {[%clk 0:00:24]} 40... Kd7 {[%clk 0:01:00]}
41. Kc4 {[%clk 0:00:24.3]} 41... Kc7 {[%clk 0:00:56.6]} 42. g5 {[%clk
0:00:23.6]} 42... Rg8 {[%clk 0:00:54.9]} 43. h4 {[%clk 0:00:23.4]} 43... Rg7
{[%clk 0:00:54.6]} 44. Rh6 {[%clk 0:00:22]} 44... Kb6 {[%clk 0:00:54.3]} 45. b3
{[%clk 0:00:22]} 45... Rf7 {[%clk 0:00:54]} 46. Kd5 {[%clk 0:00:18]} 46... Kxb5
{[%clk 0:00:48.4]} 47. Ke6 {[%clk 0:00:18.4]} 47... Rg7 {[%clk 0:00:48.7]} 48.
Kd7 {[%clk 0:00:15.3]} 48... Kc5 {[%clk 0:00:47.1]} 49. Ke8 {[%clk 0:00:15.7]}
49... e5 {[%clk 0:00:43.6]} 50. h5 {[%clk 0:00:14.4]} 50... e4 {[%clk
0:00:38.3]} 51. Re6 {[%clk 0:00:14.1]} 51... Rxg5 {[%clk 0:00:37.7]} 52. Rxe4
{[%clk 0:00:13.8]} 52... Re5+ {[%clk 0:00:37.9]} 53. Rxe5+ {[%clk 0:00:13.4]}
53... Bxe5 {[%clk 0:00:38.8]} 0-1

[Event "Late-Titled-Tuesday-Blitz-April-23-2024"]
[Site "Chess.com"]
[Date "2024.04.23"]
[Round "9"]
[White "Meri-Arabidze"]
[Black "mortngabriel"]
[Result "1/2-1/2"]
[WhiteElo "2670"]
[BlackElo "2470"]
[TimeControl "180+1"]
[EndTime "15:46:24 PDT"]
[Termination "Game drawn by repetition"]

1. Nf3 {[%clk 0:03:00.9]} 1... Nf6 {[%clk 0:02:58.7]} 2. c4 {[%clk 0:03:00.9]}
2... e6 {[%clk 0:02:58.8]} 3. g3 {[%clk 0:03:01]} 3... d5 {[%clk 0:02:59.3]} 4.
Bg2 {[%clk 0:03:01.7]} 4... Be7 {[%clk 0:02:59.8]} 5. O-O {[%clk 0:03:01.7]}
5... O-O {[%clk 0:03:00.5]} 6. d4 {[%clk 0:03:01.8]} 6... dxc4 {[%clk
0:03:00.9]} 7. Qc2 {[%clk 0:03:01.9]} 7... b5 {[%clk 0:03:00.8]} 8. a4 {[%clk
0:02:58.7]} 8... b4 {[%clk 0:03:01.2]} 9. Ne5 {[%clk 0:02:45.3]} 9... Nd5 {[%clk
0:02:59.9]} 10. Nxc4 {[%clk 0:02:44.8]} 10... c5 {[%clk 0:02:59.3]} 11. dxc5
{[%clk 0:02:40.2]} 11... Bxc5 {[%clk 0:03:00.2]} 12. Nbd2 {[%clk 0:02:36.8]}
12... Ba6 {[%clk 0:02:39.1]} 13. Ne4 {[%clk 0:02:22.9]} 13... Be7 {[%clk
0:02:16.9]} 14. Rd1 {[%clk 0:02:22.5]} 14... Qc7 {[%clk 0:02:09.5]} 15. b3
{[%clk 0:02:22.1]} 15... Rc8 {[%clk 0:02:04.1]} 16. Bb2 {[%clk 0:02:00.6]} 16...
Bxc4 {[%clk 0:01:58.3]} 17. bxc4 {[%clk 0:01:59.6]} 17... Qxc4 {[%clk
0:01:59.2]} 18. Qd2 {[%clk 0:01:56.9]} 18... Nd7 {[%clk 0:01:45.2]} 19. Rac1
{[%clk 0:01:42.6]} 19... Qa6 {[%clk 0:01:35.8]} 20. Qd4 {[%clk 0:01:42.2]} 20...
N7f6 {[%clk 0:01:22.7]} 21. g4 {[%clk 0:00:48.4]} 21... Bf8 {[%clk 0:01:06]} 22.
Nxf6+ {[%clk 0:00:43.4]} 22... Nxf6 {[%clk 0:01:00.5]} 23. Bxa8 {[%clk
0:00:43.2]} 23... Rxa8 {[%clk 0:01:01.4]} 24. g5 {[%clk 0:00:40.7]} 24... Nd5
{[%clk 0:01:00.5]} 25. Rd2 {[%clk 0:00:27.6]} 25... Qxa4 {[%clk 0:00:58.2]} 26.
e4 {[%clk 0:00:27]} 26... Nf4 {[%clk 0:00:55.6]} 27. Qe3 {[%clk 0:00:27]} 27...
Ng6 {[%clk 0:00:34.9]} 28. Rc7 {[%clk 0:00:25.7]} 28... Qa5 {[%clk 0:00:28.8]}
29. Rdd7 {[%clk 0:00:22.9]} 29... Qa2 {[%clk 0:00:12]} 30. Bd4 {[%clk
0:00:15.9]} 30... e5 {[%clk 0:00:10.3]} 31. Bxa7 {[%clk 0:00:06.9]} 31... Rxa7
{[%clk 0:00:05.5]} 32. Qxa7 {[%clk 0:00:04.5]} 32... Qb1+ {[%clk 0:00:05.5]} 33.
Kg2 {[%clk 0:00:04.6]} 33... Nf4+ {[%clk 0:00:06]} 34. Kf3 {[%clk 0:00:04]}
34... Qh1+ {[%clk 0:00:05.6]} 35. Ke3 {[%clk 0:00:04.1]} 35... Qe1+ {[%clk
0:00:05.6]} 36. Kf3 {[%clk 0:00:03.9]} 36... Qh1+ {[%clk 0:00:04.2]} 37. Ke3
{[%clk 0:00:04.1]} 37... Qe1+ {[%clk 0:00:04]} 38. Kf3 {[%clk 0:00:04.5]} 38...
Qh1+ {[%clk 0:00:02.6]} 1/2-1/2

[Event "Late-Titled-Tuesday-Blitz-April-23-2024"]
[Site "Chess.com"]
[Date "2024.04.23"]
[Round "9"]
[White "JoakimVonAnd"]
[Black "Msb2"]
[Result "0-1"]
[WhiteElo "2735"]
[BlackElo "3065"]
[TimeControl "180+1"]
[EndTime "15:46:27 PDT"]
[Termination "Msb2 won on time"]

1. d4 {[%clk 0:03:00.9]} 1... d5 {[%clk 0:03:00.3]} 2. c4 {[%clk 0:03:00.9]}
2... e6 {[%clk 0:03:00.8]} 3. Nc3 {[%clk 0:03:00.4]} 3... Bb4 {[%clk 0:03:01]}
4. e3 {[%clk 0:02:58.8]} 4... Nf6 {[%clk 0:03:00.9]} 5. a3 {[%clk 0:02:55.2]}
5... Bxc3+ {[%clk 0:03:00.8]} 6. bxc3 {[%clk 0:02:56.1]} 6... c6 {[%clk
0:03:01.5]} 7. Bd3 {[%clk 0:02:52.8]} 7... e5 {[%clk 0:03:01.7]} 8. Ne2 {[%clk
0:02:53.2]} 8... e4 {[%clk 0:02:59.9]} 9. Bb1 {[%clk 0:02:52.9]} 9... O-O {[%clk
0:02:59.7]} 10. O-O {[%clk 0:02:41.5]} 10... b6 {[%clk 0:02:59.9]} 11. cxd5
{[%clk 0:02:32.1]} 11... cxd5 {[%clk 0:03:00.8]} 12. f3 {[%clk 0:02:30.2]} 12...
Ba6 {[%clk 0:02:59.9]} 13. Rf2 {[%clk 0:02:26]} 13... Nc6 {[%clk 0:02:54.5]} 14.
Ng3 {[%clk 0:02:24.4]} 14... Qe7 {[%clk 0:02:38.7]} 15. fxe4 {[%clk 0:02:02.7]}
15... Nxe4 {[%clk 0:02:39.6]} 16. Bxe4 {[%clk 0:01:54]} 16... dxe4 {[%clk
0:02:40.5]} 17. Qg4 {[%clk 0:01:54.3]} 17... g6 {[%clk 0:02:20.3]} 18. a4 {[%clk
0:01:42.3]} 18... f5 {[%clk 0:01:54.6]} 19. Rxf5 {[%clk 0:01:18.7]} 19... Rxf5
{[%clk 0:01:24.4]} 20. Nxf5 {[%clk 0:01:18.7]} 20... Qf6 {[%clk 0:01:25.1]} 21.
Ng3 {[%clk 0:01:13.3]} 21... h5 {[%clk 0:01:11.5]} 22. Qd7 {[%clk 0:01:09]}
22... h4 {[%clk 0:01:05.2]} 23. Qd5+ {[%clk 0:00:45.3]} 23... Kh8 {[%clk
0:00:56.9]} 24. Ba3 {[%clk 0:00:45.2]} 24... hxg3 {[%clk 0:00:56.4]} 25. hxg3
{[%clk 0:00:44.3]} 25... Re8 {[%clk 0:00:49.5]} 26. Bd6 {[%clk 0:00:31.9]} 26...
Rd8 {[%clk 0:00:30.2]} 27. Qxc6 {[%clk 0:00:31.9]} 27... Qxd6 {[%clk 0:00:30.3]}
28. Qxe4 {[%clk 0:00:32]} 28... Kg7 {[%clk 0:00:29.2]} 29. a5 {[%clk 0:00:25.5]}
29... b5 {[%clk 0:00:21.2]} 30. Ra2 {[%clk 0:00:21.5]} 30... Rd7 {[%clk
0:00:19.2]} 31. Rf2 {[%clk 0:00:17.1]} 31... Re7 {[%clk 0:00:11.9]} 32. Qa8
{[%clk 0:00:15.1]} 32... Rxe3 {[%clk 0:00:11.6]} 33. Qxa7+ {[%clk 0:00:12.8]}
33... Re7 {[%clk 0:00:11.3]} 34. Qa8 {[%clk 0:00:12.9]} 34... Re1+ {[%clk
0:00:06.5]} 35. Kh2 {[%clk 0:00:12.5]} 35... Re3 {[%clk 0:00:07]} 36. Qa7+
{[%clk 0:00:12.3]} 36... Kh6 {[%clk 0:00:07.5]} 37. Rf4 {[%clk 0:00:07.7]} 37...
g5 {[%clk 0:00:07.9]} 38. Rg4 {[%clk 0:00:03.4]} 38... Bc8 {[%clk 0:00:08.1]}
39. Rxg5 {[%clk 0:00:01.1]} 39... Kxg5 {[%clk 0:00:07.2]} 40. Qg7+ {[%clk
0:00:01.8]} 40... Qg6 {[%clk 0:00:06.7]} 41. Qg8 {[%clk 0:00:01.5]} 41... Qxg8
{[%clk 0:00:07]} 0-1

[Event "Late-Titled-Tuesday-Blitz-April-23-2024"]
[Site "Chess.com"]
[Date "2024.04.23"]
[Round "9"]
[White "Mikhail_Bryakin"]
[Black "jcibarra"]
[Result "1/2-1/2"]
[WhiteElo "2829"]
[BlackElo "2985"]
[TimeControl "180+1"]
[EndTime "15:46:27 PDT"]
[Termination "Game drawn by repetition"]

1. Nf3 {[%clk 0:02:59.4]} 1... d6 {[%clk 0:03:00.3]} 2. d4 {[%clk 0:02:56.5]}
2... g6 {[%clk 0:03:00.8]} 3. b3 {[%clk 0:02:56.7]} 3... Bg7 {[%clk 0:03:01]} 4.
Bb2 {[%clk 0:02:57.4]} 4... Nd7 {[%clk 0:03:01.2]} 5. Nbd2 {[%clk 0:02:56.4]}
5... e5 {[%clk 0:03:00.4]} 6. e3 {[%clk 0:02:53.8]} 6... Nh6 {[%clk 0:02:59.4]}
7. Be2 {[%clk 0:02:48.9]} 7... O-O {[%clk 0:02:59.1]} 8. O-O {[%clk 0:02:49.5]}
8... f5 {[%clk 0:02:58.9]} 9. c4 {[%clk 0:02:49.5]} 9... g5 {[%clk 0:02:56.5]}
10. Qc2 {[%clk 0:02:48.3]} 10... g4 {[%clk 0:02:53.8]} 11. Ne1 {[%clk
0:02:46.6]} 11... Qe7 {[%clk 0:02:38.6]} 12. d5 {[%clk 0:02:26.5]} 12... e4
{[%clk 0:02:33.4]} 13. Bxg7 {[%clk 0:02:24.8]} 13... Qxg7 {[%clk 0:02:33.1]} 14.
Rb1 {[%clk 0:02:22.3]} 14... Ne5 {[%clk 0:02:33.4]} 15. g3 {[%clk 0:02:16.1]}
15... Nf3+ {[%clk 0:02:29.4]} 16. Kh1 {[%clk 0:02:16.7]} 16... Nf7 {[%clk
0:02:28.3]} 17. Ng2 {[%clk 0:02:16.4]} 17... N7e5 {[%clk 0:02:21.7]} 18. Nf4
{[%clk 0:02:13.1]} 18... Rf6 {[%clk 0:02:09.8]} 19. h4 {[%clk 0:02:12.7]} 19...
Rh6 {[%clk 0:01:51.6]} 20. Kg2 {[%clk 0:02:11.5]} 20... Ng6 {[%clk 0:01:52.2]}
21. Rh1 {[%clk 0:02:01.4]} 21... Nxf4+ {[%clk 0:01:50.7]} 22. exf4 {[%clk
0:02:02.3]} 22... Bd7 {[%clk 0:01:37.3]} 23. Nf1 {[%clk 0:02:00.8]} 23... a5
{[%clk 0:01:32.3]} 24. Ne3 {[%clk 0:01:57]} 24... b6 {[%clk 0:01:32.7]} 25. Rbd1
{[%clk 0:01:53.8]} 25... Rf6 {[%clk 0:01:25.7]} 26. Rb1 {[%clk 0:01:53.6]} 26...
Rff8 {[%clk 0:01:25.2]} 27. Qb2 {[%clk 0:01:54]} 27... Qe7 {[%clk 0:01:17.6]}
28. Rhd1 {[%clk 0:01:51.6]} 28... h6 {[%clk 0:01:17.4]} 29. Qc3 {[%clk
0:01:44.7]} 29... Kh7 {[%clk 0:01:17.7]} 30. a3 {[%clk 0:01:44.1]} 30... Ra7
{[%clk 0:01:17.1]} 31. Rb2 {[%clk 0:01:43.1]} 31... Rfa8 {[%clk 0:01:16.8]} 32.
Rc1 {[%clk 0:01:43]} 32... Kg6 {[%clk 0:01:16.3]} 33. Rd1 {[%clk 0:01:42.2]}
33... h5 {[%clk 0:01:16.4]} 34. Rc1 {[%clk 0:01:42.2]} 34... Be8 {[%clk
0:01:12.3]} 35. Rd1 {[%clk 0:01:41.5]} 35... Bd7 {[%clk 0:01:11.6]} 36. Rc1
{[%clk 0:01:40.9]} 36... Rb8 {[%clk 0:01:05.3]} 37. Qc2 {[%clk 0:01:36.4]} 37...
Raa8 {[%clk 0:01:04.6]} 38. Rd1 {[%clk 0:01:36]} 38... Qf6 {[%clk 0:00:58.9]}
39. Rbb1 {[%clk 0:01:34.8]} 39... Rh8 {[%clk 0:00:46.9]} 40. Rbc1 {[%clk
0:01:34]} 40... Ra7 {[%clk 0:00:45.1]} 41. Qc3 {[%clk 0:01:32.5]} 41... Rha8
{[%clk 0:00:35.5]} 42. Qxf6+ {[%clk 0:01:32]} 42... Kxf6 {[%clk 0:00:36.4]} 43.
Bxf3 {[%clk 0:01:30.5]} 43... gxf3+ {[%clk 0:00:28.7]} 44. Kf1 {[%clk
0:01:31.4]} 44... Rb8 {[%clk 0:00:19.8]} 45. Ke1 {[%clk 0:01:30.4]} 45... Ke7
{[%clk 0:00:19.3]} 46. Kd2 {[%clk 0:01:30.5]} 46... Ra6 {[%clk 0:00:15.8]} 47.
Rc2 {[%clk 0:01:28]} 47... Kf6 {[%clk 0:00:15.5]} 48. Rdc1 {[%clk 0:01:28.4]}
48... Rb7 {[%clk 0:00:15.6]} 49. Nd1 {[%clk 0:01:18.2]} 49... Rb8 {[%clk
0:00:15.5]} 50. Ke3 {[%clk 0:01:18.8]} 50... Rg8 {[%clk 0:00:12.6]} 51. Kd4
{[%clk 0:01:18.6]} 51... Raa8 {[%clk 0:00:12.5]} 52. Ne3 {[%clk 0:01:18.9]}
52... Ra7 {[%clk 0:00:12.6]} 53. Rb2 {[%clk 0:01:19.2]} 53... Rga8 {[%clk
0:00:12.6]} 54. Nc2 {[%clk 0:01:18.9]} 54... Ke7 {[%clk 0:00:12.9]} 55. Ne3
{[%clk 0:01:19.2]} 55... Kf6 {[%clk 0:00:13.2]} 56. Ra1 {[%clk 0:01:18.8]} 56...
Rb8 {[%clk 0:00:13.1]} 57. Rab1 {[%clk 0:01:18.4]} 57... Re8 {[%clk 0:00:12.7]}
58. Ra2 {[%clk 0:01:16.1]} 58... Rea8 {[%clk 0:00:12.7]} 59. Rbb2 {[%clk
0:01:16.7]} 59... Ra6 {[%clk 0:00:12.3]} 60. Ra1 {[%clk 0:01:17]} 60... Ke7
{[%clk 0:00:12.3]} 61. Rba2 {[%clk 0:01:17.5]} 61... R6a7 {[%clk 0:00:11.1]} 62.
Nd1 {[%clk 0:01:18]} 62... Kf6 {[%clk 0:00:10.8]} 63. Nc3 {[%clk 0:01:18.6]}
63... Re8 {[%clk 0:00:11.1]} 64. b4 {[%clk 0:01:17.9]} 64... Raa8 {[%clk
0:00:05.8]} 65. Rb1 {[%clk 0:01:14.7]} 65... axb4 {[%clk 0:00:05]} 66. axb4
{[%clk 0:01:14.8]} 66... Rxa2 {[%clk 0:00:05.6]} 67. Nxa2 {[%clk 0:01:15.5]}
67... Ra8 {[%clk 0:00:04.5]} 68. Nc3 {[%clk 0:01:14.4]} 68... Ra3 {[%clk
0:00:05]} 69. Rb2 {[%clk 0:01:12.4]} 69... Ra1 {[%clk 0:00:04.7]} 70. Rb1 {[%clk
0:01:13.1]} 70... Ra3 {[%clk 0:00:04.7]} 71. Rb2 {[%clk 0:01:13.5]} 71... Ke7
{[%clk 0:00:04.5]} 72. Rb1 {[%clk 0:01:11.7]} 72... Kf6 {[%clk 0:00:04.5]}
1/2-1/2

[Event "Late-Titled-Tuesday-Blitz-April-23-2024"]
[Site "Chess.com"]
[Date "2024.04.23"]
[Round "9"]
[White "ArtemDyachuk"]
[Black "ural58"]
[Result "1-0"]
[WhiteElo "2727"]
[BlackElo "2556"]
[TimeControl "180+1"]
[EndTime "15:46:27 PDT"]
[Termination "ArtemDyachuk won by resignation"]

1. e4 {[%clk 0:03:00.9]} 1... d5 {[%clk 0:02:59.5]} 2. exd5 {[%clk 0:03:00.6]}
2... Qxd5 {[%clk 0:02:59.4]} 3. Nc3 {[%clk 0:03:00.7]} 3... Qa5 {[%clk
0:02:59.2]} 4. Nf3 {[%clk 0:03:00.6]} 4... Nc6 {[%clk 0:02:57.3]} 5. Be2 {[%clk
0:02:59.7]} 5... Bg4 {[%clk 0:02:56.7]} 6. b4 {[%clk 0:02:59.7]} 6... Nxb4
{[%clk 0:02:55.2]} 7. Rb1 {[%clk 0:02:59.4]} 7... O-O-O {[%clk 0:02:54.1]} 8. a3
{[%clk 0:02:57.2]} 8... Nd5 {[%clk 0:02:53.5]} 9. Rb5 {[%clk 0:02:32.4]} 9...
Nxc3 {[%clk 0:02:43.3]} 10. Rxa5 {[%clk 0:02:32.2]} 10... Nxd1 {[%clk 0:02:43]}
11. Rxa7 {[%clk 0:02:27.6]} 11... Kb8 {[%clk 0:02:37.3]} 12. Ra4 {[%clk
0:02:26.9]} 12... Nxf2 {[%clk 0:02:33.3]} 13. Kxf2 {[%clk 0:02:25.9]} 13... Bd7
{[%clk 0:02:27.9]} 14. Rd4 {[%clk 0:02:15.1]} 14... e5 {[%clk 0:02:27.7]} 15.
Rh4 {[%clk 0:01:47.1]} 15... Be7 {[%clk 0:02:21.5]} 16. Rh5 {[%clk 0:01:42.4]}
16... f6 {[%clk 0:02:17.8]} 17. Bb2 {[%clk 0:01:42.4]} 17... Nh6 {[%clk
0:02:12.7]} 18. Rb1 {[%clk 0:01:41.4]} 18... Ng4+ {[%clk 0:02:05.7]} 19. Ke1
{[%clk 0:01:37.6]} 19... g6 {[%clk 0:02:05.6]} 20. Rh4 {[%clk 0:01:35.4]} 20...
f5 {[%clk 0:02:04]} 21. Rxg4 {[%clk 0:01:34.6]} 21... fxg4 {[%clk 0:02:03.8]}
22. Nxe5 {[%clk 0:01:35.5]} 22... Rhe8 {[%clk 0:02:02.2]} 23. Nf7 {[%clk
0:01:02.9]} 23... Rf8 {[%clk 0:01:59.6]} 24. Nxd8 {[%clk 0:01:00.5]} 24... Bxd8
{[%clk 0:01:56.8]} 25. Be5 {[%clk 0:00:57.9]} 25... h5 {[%clk 0:01:51.4]} 26. g3
{[%clk 0:00:53.4]} 26... Bc6 {[%clk 0:01:49.7]} 27. d4 {[%clk 0:00:46.7]} 27...
Bf6 {[%clk 0:01:43.4]} 28. Bxf6 {[%clk 0:00:40.7]} 28... Rxf6 {[%clk 0:01:42.9]}
29. c4 {[%clk 0:00:33.7]} 29... Be4 {[%clk 0:01:41.9]} 30. Rb3 {[%clk
0:00:31.7]} 30... c6 {[%clk 0:01:34.8]} 31. Re3 {[%clk 0:00:30.4]} 31... Bc2
{[%clk 0:01:32.7]} 32. Rc3 {[%clk 0:00:29.5]} 32... Ba4 {[%clk 0:01:31.5]} 33.
Re3 {[%clk 0:00:28.4]} 33... b6 {[%clk 0:01:25.3]} 34. Bd3 {[%clk 0:00:26]}
34... Kc7 {[%clk 0:01:22.8]} 35. Kd2 {[%clk 0:00:24.5]} 35... Kd6 {[%clk
0:01:18.4]} 36. Kc3 {[%clk 0:00:23.6]} 36... Rf3 {[%clk 0:01:11.8]} 37. Rxf3
{[%clk 0:00:14.8]} 37... gxf3 {[%clk 0:01:11.3]} 38. Bxg6 {[%clk 0:00:15.1]}
38... f2 {[%clk 0:01:09]} 39. Bd3 {[%clk 0:00:15.1]} 39... b5 {[%clk 0:01:07.4]}
40. Kd2 {[%clk 0:00:11.2]} 40... bxc4 {[%clk 0:01:06.7]} 41. Bxc4 {[%clk
0:00:12.1]} 41... c5 {[%clk 0:00:58.8]} 42. dxc5+ {[%clk 0:00:08.4]} 42... Kxc5
{[%clk 0:00:58.4]} 43. Bf1 {[%clk 0:00:09]} 43... Kd4 {[%clk 0:00:55.2]} 44. Ke2
{[%clk 0:00:09.1]} 44... Kc3 {[%clk 0:00:55.4]} 45. Kxf2 {[%clk 0:00:09.2]}
45... h4 {[%clk 0:00:56]} 46. gxh4 {[%clk 0:00:05.3]} 46... Kb2 {[%clk
0:00:55.9]} 47. Bd3 {[%clk 0:00:03.2]} 47... Kxa3 {[%clk 0:00:52.8]} 48. h5
{[%clk 0:00:03.2]} 48... Bb3 {[%clk 0:00:46]} 49. h6 {[%clk 0:00:03.1]} 49...
Bg8 {[%clk 0:00:46.7]} 50. Ke3 {[%clk 0:00:02.5]} 50... Kb4 {[%clk 0:00:45.4]}
51. Kd4 {[%clk 0:00:02.8]} 51... Ka5 {[%clk 0:00:44.8]} 52. Ke5 {[%clk 0:00:03]}
52... Kb6 {[%clk 0:00:44.9]} 53. Kf6 {[%clk 0:00:03.5]} 53... Kc7 {[%clk
0:00:44.7]} 54. Kg7 {[%clk 0:00:04]} 1-0